fUSD/lending_fUSD_20251024
["ID","MTS","AMOUNT","RATE_DAILY","PERIOD"]
[392294426,1761317442349,-151.0,0.00040326,120]
[392294427,1761317442360,-151.0,0.00040326,120]
[392294428,1761317442370,-151.0,0.00040326,120]
[392294429,1761317442379,-151.0,0.00040326,120]
[392294430,1761317442394,-7032.87024578,0.00040329,15]
[392294431,1761317442403,-293.0,0.00040332,2]
[392294432,1761317442413,-500.0,0.00040333,30]
[392294433,1761317442423,-18583.2916578,0.00040333,3]
[392294434,1761317442433,-14841.5779868,0.00040333,3]
[392294435,1761317442443,-14841.5779868,0.00040334,3]
[392294436,1761317442452,-14841.5779868,0.00040334,3]
[392294437,1761317442463,-7000.0,0.00040335,4]
[392294438,1761317442474,-151.0,0.00040335,120]
[392294439,1761317442483,-151.0,0.00040335,120]
[392294440,1761317442493,-151.0,0.00040335,120]
[392294441,1761317442502,-151.0,0.00040335,120]
[392294442,1761317442512,-903.423291,0.00040335,120]
[392294443,1761317442522,-151.0,0.00040335,120]
[392294444,1761317442531,-151.0,0.00040335,120]
[392294445,1761317442540,-151.0,0.00040335,120]
[392294446,1761317442550,-903.423291,0.00040335,120]
[392294447,1761317442559,-151.0,0.00040335,120]
[392294448,1761317442568,-535.592083,0.00040335,120]
[392294449,1761317442579,-151.0,0.00040335,120]
[392294450,1761317442588,-151.0,0.00040335,120]
[392294451,1761317442598,-903.423291,0.00040335,120]
[392294452,1761317442607,-151.0,0.00040335,30]
[392294453,1761317442617,-535.592083,0.00040335,120]
[392294454,1761317442628,-151.0,0.00040335,120]
[392294455,1761317442637,-903.423291,0.00040335,120]
[392294456,1761317442647,-151.0,0.00040335,120]
[392294457,1761317442656,-151.0,0.00040335,120]
[392294458,1761317442666,-535.592083,0.00040335,120]
[392294459,1761317442675,-151.0,0.00040335,120]
[392294460,1761317442685,-151.0,0.00040335,120]
[392294461,1761317442694,-151.0,0.00040335,120]
[392294462,1761317442704,-151.0,0.00040335,14]
[392294463,1761317442713,-535.592083,0.00040335,120]
[392294464,1761317442723,-151.0,0.00040335,120]
[392294465,1761317442733,-151.0,0.00040335,120]
[392294466,1761317442742,-151.0,0.00040335,120]
[392294467,1761317442751,-151.0,0.00040335,120]
[392294468,1761317442761,-151.0,0.00040335,120]
[392294469,1761317442770,-151.0,0.00040335,120]
[392294470,1761317442780,-324.029031,0.00040335,120]
[392294471,1761317442789,-1012.515101,0.00040335,30]
[392294472,1761317442799,-324.029031,0.00040335,120]
[392294473,1761317442808,-1012.515101,0.00040335,30]
[392294474,1761317442818,-324.029031,0.00040335,120]
[392294475,1761317443080,-1012.515101,0.00040335,30]
[392294476,1761317443091,-324.029031,0.00040335,120]
[392294477,1761317443100,-1012.515101,0.00040335,30]
[392294478,1761317443110,-151.0,0.00040335,120]
[392294479,1761317443120,-151.0,0.00040335,120]
[392294480,1761317443130,-151.0,0.00040335,120]
[392294481,1761317443139,-151.0,0.00040335,120]
[392294482,1761317443148,-151.0,0.00040335,120]
[392294483,1761317443158,-324.110294,0.00040335,120]
[392294484,1761317443167,-324.110294,0.00040335,120]
[392294485,1761317443176,-151.0,0.00040335,120]
[392294486,1761317443186,-324.110294,0.00040335,120]
[392294487,1761317443195,-324.110294,0.00040335,120]
[392294488,1761317443205,-18583.2916578,0.00040335,3]
[392294489,1761317443214,-14841.5779868,0.00040335,3]
[392294490,1761317443224,-400.6256101,0.00040336,2]
[392294491,1761317443233,-5150.73466399,0.00040336,2]
[392294499,1761317443977,-586.6923115,0.00031697,2]
[392294500,1761317443992,-246.3076885,0.00031697,2]
[392294501,1761317444001,-19.1356115,0.00039159,2]
[392294502,1761317444077,-149.3843885,0.00039159,2]
[392294503,1761317444087,-10.95561336,0.00039159,2]
[392294506,1761317446410,-534.97438664,0.00039159,2]
[392294507,1761317446419,-151.0,0.00040326,120]
[392294508,1761317446429,-151.0,0.00040326,120]
[392294509,1761317446439,-1169.55539597,0.00040326,15]
[392294526,1761318088043,-333.14,0.00019442,2]
[392294527,1761318088071,-150.0,0.00019442,2]
[392294528,1761318088102,-333.14,0.00020465,2]
[392294529,1761318088131,-333.14,0.00021489,2]
[392294530,1761318088161,-333.14,0.00022512,2]
[392294531,1761318088191,-333.14,0.00023535,2]
[392294532,1761318088219,-333.14,0.00024558,2]
[392294533,1761318088246,-500.0,0.00024932,2]
[392294534,1761318130751,250.0,0.00017,2]
[392294546,1761318558119,-333.14,0.00025582,2]
[392294559,1761318632441,-333.14,0.00026605,2]
[392294560,1761318632451,-333.14,0.00027628,2]
[392294561,1761318632460,-333.14,0.00028651,2]
[392294562,1761318632470,-333.14,0.00029675,2]
[392294563,1761318632479,-34.5344851,0.00030052,2]
[392294564,1761318632490,-286.93298176,0.00030052,2]
[392294565,1761318632499,-22.30701824,0.00030698,2]
[392294566,1761318632510,-310.83298176,0.00030698,2]
[392294567,1761318632519,-333.14,0.00031721,2]
[392294568,1761318632529,-333.14,0.00032744,2]
[392294569,1761318632538,-303.0,0.00033,12]
[392294570,1761318632547,-333.14,0.00033768,2]
[392294571,1761318632556,-333.14,0.00034791,2]
[392294572,1761318632566,-424.09,0.00035634,2]
[392294573,1761318632575,-333.14,0.00035814,2]
[392294574,1761318632584,-300.0,0.00035908,7]
[392294575,1761318632594,-152.0,0.00035945,3]
[392294576,1761318632604,-366.66,0.00036287,2]
[392294577,1761318632613,-116.79374083,0.00036323,30]
[392294578,1761318632629,-49.86625917,0.00036323,30]
[392294579,1761318632638,-164.32,0.00036429,2]
[392294580,1761318632647,-166.7,0.00036456,2]
[392294581,1761318632657,-1600.0,0.00036481,3]
[392294582,1761318632666,-271.48590756,0.00036482,15]
[392294583,1761318632678,-110.53953642,0.00036482,15]
[392294584,1761318632687,-290.5,0.00036482,15]
[392294585,1761318632697,-158.33,0.00036483,2]
[392294586,1761318632706,-542.13086358,0.00036483,2]
[392294587,1761318632721,-9380.31913642,0.00036483,2]
[392294588,1761318632730,-230.559,0.00036483,45]
[392294589,1761318632739,-809.38,0.00036562,2]
[392294590,1761318632749,-279.41,0.0003658,2]
[392294591,1761318632758,-200.0,0.00036631,2]
[392294592,1761318632767,-233.7175,0.00036632,2]
[392294593,1761318632776,-9502.31277908,0.00036632,2]
[392294595,1761318632786,-271.79,0.00036722,3]
[392294596,1761318632795,-200.6949278,0.00036732,2]
[392294597,1761318632804,-159901.99809559,0.00036732,60]
[392294598,1761318632824,-1435.76059208,0.00036732,60]
[392294599,1761318632849,-834.46466102,0.00036732,60]
[392294600,1761318632862,-1994.98025486,0.00036732,60]
[392294602,1761318632873,-635.60235995,0.00036732,60]
[392294605,1761318632888,-4544.70443836,0.00036732,60]
[392294606,1761318632900,-368.48262326,0.00036732,60]
[392294607,1761318632915,-3444.2674592,0.00036732,60]
[392294609,1761318638362,-1217.4,0.00036732,60]
[392294610,1761318638382,-19198.04981966,0.00036732,60]
[392294611,1761318638513,-431.69598331,0.00036732,60]
[392294612,1761318638527,-532.70323561,0.00036732,60]
[392294613,1761318638539,-3385.29467707,0.00036732,60]
[392294622,1761318640505,-975.79614773,0.00036732,60]
[392294623,1761318640607,-405.0,0.00036732,60]
[392294624,1761318640686,-118.44225166,0.00036732,60]
[392294625,1761318640699,-1105.56494005,0.00036732,60]
[392294626,1761318640711,-778.6788241,0.00036732,60]
[392294627,1761318640739,-42389.11363649,0.00036732,60]
[392294628,1761318640750,-150.0,0.00036732,120]
[392294629,1761318640764,-150.0,0.00036732,120]
[392294630,1761318640774,-150.0,0.00036732,120]
[392294631,1761318640784,-150.0,0.00036732,120]
[392294632,1761318640795,-150.0,0.00036732,120]
[392294633,1761318640805,-150.0,0.00036732,120]
[392294634,1761318640815,-150.0,0.00036732,120]
[392294635,1761318640826,-150.0,0.00036732,120]
[392294636,1761318640836,-150.0,0.00036732,120]
[392294637,1761318640847,-150.0,0.00036732,120]
[392294638,1761318640857,-150.0,0.00036732,120]
[392294639,1761318640867,-150.0,0.00036732,120]
[392294640,1761318640877,-150.0,0.00036732,120]
[392294641,1761318640887,-150.0,0.00036732,120]
[392294642,1761318640898,-150.0,0.00036732,120]
[392294643,1761318640908,-150.0,0.00036732,120]
[392294644,1761318640919,-150.0,0.00036732,120]
[392294645,1761318640930,-150.0,0.00036732,120]
[392294646,1761318640940,-500.76547992,0.00036773,5]
[392294647,1761318640955,-349.13524529,0.00036773,5]
[392294648,1761318640966,-500.0,0.00036773,5]
[392294649,1761318640976,-500.0,0.00036773,5]
[392294650,1761318640986,-501.59885983,0.00036773,5]
[392294651,1761318640996,-502.1403642,0.00036773,5]
[392294652,1761318641007,-500.0,0.00036773,5]
[392294653,1761318641016,-500.0,0.00036773,5]
[392294654,1761318641026,-500.0,0.00036773,5]
[392294655,1761318641036,-500.0,0.00036773,5]
[392294656,1761318641046,-333.14,0.00036837,2]
[392294657,1761318641056,-150.0,0.00036962,7]
[392294658,1761318641067,-150.0,0.00036962,7]
[392294661,1761318641078,-166.66,0.00037087,30]
[392294663,1761318641088,-9502.31277906,0.00037208,2]
[392294665,1761318641098,-1000.0,0.00037321,5]
[392294667,1761318641108,-1000.0,0.00037321,5]
[392294669,1761318641117,-1000.0,0.00037321,5]
[392294671,1761318641127,-946.38832103,0.00037321,5]
[392294673,1761318641137,-500.0,0.00037321,5]
[392294675,1761318641150,-168.0,0.00037485,2]
[392294677,1761318641159,-9502.31277906,0.00037784,2]
[392294679,1761318641169,-166.66,0.00037852,30]
[392294681,1761318641179,-333.14,0.00037861,2]
[392294683,1761318641188,-500.0,0.00037868,5]
[392294685,1761318641198,-1000.0,0.00037868,5]
[392294694,1761318641326,-809.38,0.00037933,2]
[392294695,1761318641336,-168.0,0.00037988,2]
[392294696,1761318641349,-7023.93684946,0.00038,10]
[392294697,1761318641359,-1000.0,0.00038234,2]
[392294698,1761318641368,-391.47,0.00038234,2]
[392294699,1761318641378,-9502.31277906,0.0003836,2]
[392294700,1761318641387,-476.35224409,0.0003842,2]
[392294701,1761318641397,-168.0,0.00038604,2]
[392294702,1761318641406,-166.66,0.00038617,30]
[392294703,1761318641416,-164.32,0.00038706,2]
[392294704,1761318641425,-152.0,0.00038721,4]
[392294705,1761318641435,-1269.0,0.00038738,2]
[392294706,1761318641445,-818.0,0.00038738,2]
[392294707,1761318641454,-1185.0,0.00038738,2]
[392294708,1761318641463,-903.0,0.00038738,2]
[392294709,1761318641473,-4538.706,0.00038803,2]
[392294710,1761318641483,-3487.0,0.00038803,2]
[392294711,1761318641492,-558.0,0.00038803,2]
[392294712,1761318641510,-6456.0,0.00038803,2]
[392294713,1761318641522,-333.14,0.00038884,2]
[392294714,1761318641532,-500.0,0.00038894,30]
[392294715,1761318641542,-158.33,0.00038909,2]
[392294716,1761318641552,-9502.31277906,0.00038936,2]
[392294717,1761318641562,-647.71,0.00039,120]
[392294718,1761318641572,-500.0,0.0003902,30]
[392294719,1761318641582,-7209.24819068,0.00039121,2]
[392294720,1761318641594,-168.0,0.00039133,2]
[392294721,1761318641604,-336.58,0.00039142,2]
[392294722,1761318641613,-176.3,0.00039142,2]
[392294723,1761318641623,-1647.0,0.000392,2]
[392294724,1761318641633,-2240.0,0.00039207,5]
[392294725,1761318641643,-168.0,0.00039221,7]
[392294726,1761318641653,-20245.1233921,0.00039224,2]
[392294727,1761318641663,-500.0,0.00039233,7]
[392294728,1761318641672,-300.0,0.00039233,7]
[392294729,1761318641682,-809.38,0.00039304,2]
[392294730,1761318641692,-8352.3847168,0.00039311,2]
[392294731,1761318641702,-11195.148023,0.00039311,2]
[392294732,1761318641712,-166.66,0.00039381,30]
[392294733,1761318641722,-500.0,0.00039394,30]
[392294734,1761318641731,-7209.24819065,0.00039421,2]
[392294735,1761318641741,-500.0,0.00039451,7]
[392294736,1761318641751,-500.0,0.00039451,7]
[392294737,1761318641761,-800.0,0.00039451,7]
[392294738,1761318641771,-166.04167627,0.00039458,15]
[392294739,1761318641781,-500.0,0.00039494,30]
[392294740,1761318641791,-9502.31277906,0.00039513,2]
[392294741,1761318641801,-251.97852004,0.00039519,20]
[392294742,1761318641812,-500.0,0.00039558,30]
[392294743,1761318641822,-168.0,0.00039609,2]
[392294744,1761318641832,-168.0,0.00039628,2]
[392294745,1761318641842,-500.0,0.00039655,30]
[392294746,1761318641852,-500.0,0.00039709,30]
[392294747,1761318641862,-7209.24819065,0.0003972,2]
[392294748,1761318641871,-168.0,0.00039727,2]
[392294749,1761318641881,-500.0,0.00039747,30]
[392294750,1761318641892,-500.0,0.00039781,30]
[392294751,1761318641902,-4059.8188,0.000398,2]
[392294752,1761318641911,-2136.5821,0.000398,2]
[392294753,1761318641920,-6420.5953,0.000398,2]
[392294754,1761318641930,-500.0,0.0003983,30]
[392294755,1761318641940,-430.74709499,0.00039837,30]
[392294756,1761318641950,-57309.0714298,0.0003989,3]
[392294757,1761318641960,-300.0,0.0003989,14]
[392294758,1761318641969,-519.72252991,0.00039899,30]
[392294759,1761318641980,-500.0,0.00039899,30]
[392294760,1761318641989,-500.0,0.00039899,30]
[392294761,1761318641999,-500.0,0.00039899,30]
[392294762,1761318642009,-500.0,0.00039899,7]
[392294763,1761318642019,-500.0,0.00039899,30]
[392294764,1761318642029,-500.0,0.00039899,2]
[392294765,1761318642039,-500.0,0.00039899,30]
[392294766,1761318642048,-500.0,0.00039899,30]
[392294767,1761318642059,-500.0,0.00039899,2]
[392294768,1761318642069,-33170.7581,0.000399,2]
[392294769,1761318642079,-206.10271691,0.000399,120]
[392294770,1761318642089,-192905.9012,0.000399,2]
[392294771,1761318642099,-181.04145175,0.000399,120]
[392294772,1761318642109,-164.594613,0.000399,120]
[392294773,1761318642120,-1000.0,0.000399,2]
[392294774,1761318642130,-187.55493399,0.000399,120]
[392294775,1761318642140,-1992.48946149,0.000399,120]
[392294776,1761318642150,-500.0,0.00039903,30]
[392294777,1761318642161,-476.35224409,0.00039903,30]
[392294778,1761318642171,-150.0,0.00039978,2]
[392294779,1761318642181,-150.0,0.00039978,2]
[392294780,1761318642192,-150.0,0.00039978,2]
[392294781,1761318642202,-500.0,0.00039999,30]
[392294782,1761318642212,-1000.0,0.0004,120]
[392294783,1761318642222,-1000.0,0.0004,120]
[392294784,1761318642232,-1000.0,0.0004,120]
[392294785,1761318642242,-1000.0,0.0004,120]
[392294786,1761318642253,-1000.0,0.0004,120]
[392294787,1761318642265,-1000.0,0.0004,120]
[392294788,1761318642280,-1000.0,0.0004,120]
[392294789,1761318642290,-1000.0,0.0004,120]
[392294790,1761318642300,-1000.0,0.0004,120]
[392294791,1761318642312,-1221.12,0.0004,120]
[392294792,1761318642321,-1000.0,0.0004,120]
[392294793,1761318642331,-618.47,0.0004,120]
[392294794,1761318642343,-476.35224409,0.0004,120]
[392294795,1761318642353,-1947.0,0.00040017,5]
[392294796,1761318642363,-150.0,0.00040017,30]
[392294797,1761318642373,-7209.24819065,0.0004002,15]
[392294798,1761318642382,-200.0,0.00040028,20]
[392294799,1761318642393,-9502.31277906,0.00040089,15]
[392294800,1761318642404,-168.0,0.00040103,2]
[392294801,1761318642414,-357.16686772,0.00040116,14]
[392294802,1761318642424,-1425.0,0.00040119,2]
[392294803,1761318642435,-166.66,0.00040146,30]
[392294804,1761318642447,-151.0,0.00040169,120]
[392294805,1761318642458,-151.0,0.00040169,120]
[392294806,1761318642468,-151.0,0.00040169,120]
[392294807,1761318642478,-151.0,0.00040169,120]
[392294808,1761318642487,-186.824208,0.00040169,120]
[392294809,1761318642497,-321.841931,0.00040169,120]
[392294810,1761318642507,-151.0,0.00040169,120]
[392294811,1761318642517,-185.591298,0.00040169,120]
[392294812,1761318642527,-151.0,0.00040169,120]
[392294813,1761318642536,-151.0,0.00040169,120]
[392294814,1761318642547,-38206.0476199,0.00040169,3]
[392294815,1761318642556,-1404.53873763,0.0004017,2]
[392294816,1761318642566,-168.0,0.00040174,2]
[392294817,1761318642576,-57309.0714298,0.00040179,3]
[392294818,1761318642585,-63660.2013906,0.00040179,3]
[392294819,1761318642596,-400.6256102,0.00040189,2]
[392294820,1761318642606,-39522.5818582,0.00040189,2]
[392294821,1761318642615,-81153.7598809,0.00040189,2]
[392294822,1761318642625,-3085.4397217,0.00040189,2]
[392294823,1761318642635,-151.0,0.00040189,120]
[392294824,1761318642644,-151.0,0.00040189,120]
[392294825,1761318642654,-242.667096,0.00040189,120]
[392294826,1761318642664,-151.0,0.00040189,120]
[392294827,1761318642674,-151.0,0.00040189,120]
[392294828,1761318642684,-151.0,0.00040189,120]
[392294829,1761318642693,-151.0,0.00040189,120]
[392294830,1761318642703,-262.887357,0.00040189,120]
[392294831,1761318642713,-151.0,0.00040189,120]
[392294832,1761318642723,-348.846661,0.00040189,120]
[392294833,1761318642733,-151.0,0.00040189,120]
[392294834,1761318642744,-151.0,0.00040189,120]
[392294835,1761318642753,-262.887357,0.00040189,120]
[392294836,1761318642763,-151.0,0.00040189,120]
[392294837,1761318642772,-151.0,0.00040189,120]
[392294838,1761318642781,-151.0,0.00040189,120]
[392294839,1761318642791,-262.887357,0.00040189,120]
[392294840,1761318642801,-348.846661,0.00040189,120]
[392294841,1761318642810,-595.102315,0.00040189,120]
[392294842,1761318642819,-151.0,0.00040189,120]
[392294843,1761318642830,-151.0,0.00040189,120]
[392294844,1761318642841,-151.0,0.00040189,30]
[392294845,1761318642851,-348.846661,0.00040189,120]
[392294846,1761318642860,-151.0,0.00040189,60]
[392294847,1761318642870,-262.887357,0.00040189,120]
[392294848,1761318642880,-151.0,0.00040189,120]
[392294849,1761318642890,-595.102315,0.00040189,120]
[392294850,1761318642899,-151.0,0.00040189,120]
[392294851,1761318642909,-260.662743,0.00040189,30]
[392294852,1761318642919,-348.846661,0.00040189,120]
[392294853,1761318642928,-151.0,0.00040189,120]
[392294854,1761318642938,-151.0,0.00040189,120]
[392294855,1761318642947,-595.102315,0.00040189,120]
[392294856,1761318642957,-151.0,0.00040189,120]
[392294857,1761318642967,-151.0,0.00040189,120]
[392294858,1761318642977,-595.102315,0.00040189,120]
[392294859,1761318642987,-151.0,0.00040189,120]
[392294860,1761318642996,-151.0,0.00040189,120]
[392294861,1761318643005,-151.0,0.00040189,120]
[392294862,1761318643015,-174.044366,0.00040189,120]
[392294863,1761318643024,-151.0,0.00040189,120]
[392294864,1761318643034,-166.544952,0.00040189,120]
[392294865,1761318643044,-151.0,0.00040189,120]
[392294866,1761318643055,-166.544952,0.00040189,120]
[392294867,1761318643065,-324.029031,0.00040189,120]
[392294868,1761318643075,-151.0,0.00040189,120]
[392294869,1761318643084,-166.544952,0.00040189,120]
[392294870,1761318643094,-324.029031,0.00040189,120]
[392294871,1761318643104,-151.0,0.00040189,120]
[392294872,1761318643113,-166.544952,0.00040189,120]
[392294873,1761318643123,-324.029031,0.00040189,120]
[392294874,1761318643132,-324.029031,0.00040189,120]
[392294875,1761318643142,-151.0,0.00040189,120]
[392294876,1761318643151,-151.0,0.00040189,120]
[392294877,1761318643160,-151.0,0.00040189,120]
[392294878,1761318643170,-151.0,0.00040189,120]
[392294879,1761318643179,-151.0,0.00040189,120]
[392294880,1761318643189,-151.0,0.00040189,120]
[392294881,1761318643199,-151.0,0.00040189,120]
[392294883,1761318643208,-151.0,0.00040189,120]
[392294884,1761318643217,-151.0,0.00040189,120]
[392294885,1761318643227,-151.0,0.00040189,120]
[392294886,1761318643236,-151.0,0.00040189,120]
[392294887,1761318643246,-151.0,0.00040189,120]
[392294889,1761318643255,-460.218743,0.00040189,120]
[392294891,1761318643267,-321.841931,0.00040189,120]
[392294892,1761318643277,-151.0,0.00040189,120]
[392294893,1761318643287,-460.218743,0.00040189,120]
[392294894,1761318643297,-460.218743,0.00040189,120]
[392294895,1761318643306,-460.218743,0.00040189,120]
[392294896,1761318643316,-151.0,0.00040189,120]
[392294897,1761318643325,-151.0,0.00040189,120]
[392294898,1761318643336,-174.88705635,0.000402,120]
[392294899,1761318643348,-174.88705635,0.000402,120]
[392294900,1761318643357,-174.88705635,0.000402,120]
[392294901,1761318643367,-174.88705635,0.000402,120]
[392294902,1761318643377,-31830.1006953,0.00040214,3]
[392294904,1761318643385,-150.42,0.00040214,2]
[392294906,1761318643396,-1060.52332431,0.00040214,7]
[392294907,1761318643405,-15915.0503476,0.00040214,3]
[392294908,1761318643416,-76412.0952398,0.00040224,3]
[392294909,1761318643425,-63660.2013906,0.00040224,3]
[392294910,1761318643435,-19103.0238099,0.00040224,3]
[392294911,1761318643444,-500.0,0.00040225,2]
[392294912,1761318643454,-500.0,0.00040225,30]
[392294913,1761318643463,-1425.0,0.00040228,2]
[392294914,1761318643472,-1700.70628813,0.00040234,2]
[392294915,1761318643482,-139448.2849,0.00040234,60]
[392294916,1761318643492,-151.0,0.00040234,120]
[392294917,1761318643502,-151.0,0.00040234,120]
[392294918,1761318643511,-151.0,0.00040234,120]
[392294919,1761318643521,-151.0,0.00040234,120]
[392294920,1761318643531,-151.0,0.00040234,120]
[392294921,1761318643541,-151.0,0.00040234,120]
[392294922,1761318643551,-151.0,0.00040234,120]
[392294923,1761318643560,-151.0,0.00040234,120]
[392294924,1761318643569,-154.180794,0.00040234,120]
[392294925,1761318643579,-235.93705,0.00040234,120]
[392294926,1761318643588,-499.453682,0.00040234,120]
[392294927,1761318643597,-151.0,0.00040234,120]
[392294928,1761318643607,-499.453682,0.00040234,120]
[392294929,1761318643617,-499.453682,0.00040234,120]
[392294930,1761318643626,-151.0,0.00040234,120]
[392294931,1761318643635,-499.453682,0.00040234,120]
[392294932,1761318643645,-151.0,0.00040234,120]
[392294933,1761318643654,-151.0,0.00040234,120]
[392294934,1761318643664,-151.0,0.00040234,120]
[392294935,1761318643673,-1012.515101,0.00040234,30]
[392294936,1761318643683,-1012.515101,0.00040234,30]
[392294937,1761318643692,-1012.515101,0.00040234,30]
[392294938,1761318643702,-151.0,0.00040234,120]
[392294939,1761318643711,-1012.515101,0.00040234,30]
[392294940,1761318643721,-152.042604,0.00040234,120]
[392294941,1761318643730,-151.0,0.00040234,120]
[392294942,1761318643740,-151.0,0.00040234,120]
[392294943,1761318643750,-151.0,0.00040234,120]
[392294944,1761318643760,-152.980179,0.00040234,120]
[392294945,1761318643769,-1553.503653,0.00040234,120]
[392294946,1761318643778,-1553.503653,0.00040234,120]
[392294947,1761318643788,-1553.503653,0.00040234,120]
[392294948,1761318643797,-220.129253,0.00040234,120]
[392294949,1761318643807,-151.0,0.00040234,120]
[392294950,1761318643817,-151.0,0.00040234,120]
[392294951,1761318643829,-220.129253,0.00040234,120]
[392294952,1761318643838,-151.0,0.00040234,120]
[392294953,1761318643850,-151.0,0.00040234,120]
[392294954,1761318643859,-1553.503653,0.00040234,120]
[392294955,1761318643869,-151.0,0.00040234,120]
[392294956,1761318643880,-220.129253,0.00040234,120]
[392294957,1761318643889,-248.264595,0.00040234,120]
[392294958,1761318643899,-151.0,0.00040234,120]
[392294959,1761318643908,-220.129253,0.00040234,120]
[392294960,1761318643918,-207.858669,0.00040234,120]
[392294961,1761318643927,-151.0,0.00040234,120]
[392294962,1761318643936,-207.858669,0.00040234,120]
[392294963,1761318643946,-151.0,0.00040234,120]
[392294964,1761318643955,-248.264595,0.00040234,120]
[392294965,1761318643965,-151.0,0.00040234,120]
[392294966,1761318643974,-207.858669,0.00040234,120]
[392294967,1761318643984,-151.0,0.00040234,120]
[392294968,1761318643994,-239.912393,0.00040234,120]
[392294969,1761318644003,-207.858669,0.00040234,120]
[392294970,1761318644013,-248.264595,0.00040234,120]
[392294971,1761318644023,-248.264595,0.00040234,120]
[392294972,1761318644032,-151.0,0.00040234,120]
[392294973,1761318644041,-151.0,0.00040234,120]
[392294974,1761318644051,-151.0,0.00040234,120]
[392294975,1761318644060,-151.0,0.00040234,120]
[392294976,1761318644070,-151.0,0.00040234,120]
[392294977,1761318644079,-151.0,0.00040234,120]
[392294978,1761318644088,-151.0,0.00040234,120]
[392294979,1761318644099,-151.0,0.00040234,120]
[392294980,1761318644109,-151.0,0.00040234,120]
[392294981,1761318644118,-151.0,0.00040234,120]
[392294982,1761318644128,-151.0,0.00040234,120]
[392294983,1761318644138,-151.0,0.00040234,120]
[392294985,1761318644148,-151.0,0.00040234,120]
[392294987,1761318644158,-151.0,0.00040234,120]
[392294989,1761318644167,-151.0,0.00040234,120]
[392294991,1761318644176,-151.0,0.00040234,120]
[392294992,1761318644186,-151.0,0.00040234,120]
[392294993,1761318644195,-262.887357,0.00040234,120]
[392294994,1761318644205,-151.0,0.00040234,120]
[392294995,1761318644214,-151.0,0.00040234,30]
[392294996,1761318644224,-348.846661,0.00040234,120]
[392294997,1761318644234,-151.0,0.00040234,120]
[392294998,1761318644244,-262.887357,0.00040234,120]
[392294999,1761318644253,-151.0,0.00040234,30]
[392295000,1761318644263,-151.0,0.00040234,120]
[392295001,1761318644276,-151.0,0.00040234,120]
[392295002,1761318644285,-262.887357,0.00040234,120]
[392295003,1761318644295,-348.846661,0.00040234,120]
[392295004,1761318644304,-595.102315,0.00040234,120]
[392295005,1761318644314,-151.0,0.00040234,120]
[392295006,1761318644324,-151.0,0.00040234,30]
[392295007,1761318644333,-348.846661,0.00040234,120]
[392295008,1761318644343,-262.887357,0.00040234,120]
[392295009,1761318644353,-151.0,0.00040234,120]
[392295010,1761318644362,-595.102315,0.00040234,120]
[392295011,1761318644372,-151.0,0.00040234,120]
[392295012,1761318644382,-348.846661,0.00040234,120]
[392295013,1761318644392,-151.0,0.00040234,120]
[392295014,1761318644401,-151.0,0.00040234,120]
[392295015,1761318644411,-595.102315,0.00040234,120]
[392295016,1761318644420,-151.0,0.00040234,120]
[392295017,1761318644430,-151.0,0.00040234,120]